bitfinex-derivatives/quotes_BTCF0:USTF0_20220103
["timestamp","ask_amount","ask_price","bid_price","bid_amount"]
[1641243553211,0.00868328,45856.0,45847.0,0.01231247]
[1641243553412,0.05488677,45855.0,45847.0,0.01231247]
[1641243553712,0.14033567,45849.0,45847.0,0.01231247]
[1641243553915,0.20556567,45849.0,45847.0,0.01231247]
[1641243554112,0.00868328,45848.0,45847.0,0.01231247]
[1641243555512,0.18868328,45848.0,45846.0,0.01231247]
[1641243555716,0.18868328,45848.0,45847.0,0.01131247]
[1641243555920,0.18,45848.0,45847.0,0.01131247]
[1641243556120,0.18,45848.0,45845.0,1.43761227]
[1641243556319,0.37,45848.0,45845.0,1.43761227]
[1641243557020,0.37,45848.0,45846.0,0.01231261]
[1641243557221,0.37,45848.0,45846.0,0.09804261]
[1641243557721,0.18,45848.0,45847.0,0.01231261]
[1641243558324,0.374,45848.0,45847.0,0.01231261]
[1641243559626,0.18,45848.0,45847.0,0.01231261]
[1641243560226,0.86175188,45851.0,45847.0,0.01331261]
[1641243560424,0.86175188,45851.0,45850.0,0.001]
[1641243560626,0.86175188,45851.0,45850.0,0.02280159]
[1641243560826,0.86175188,45851.0,45850.0,0.01331261]
[1641243561425,1.23055693,45853.0,45850.0,0.01331261]
[1641243561624,1.04175188,45856.0,45852.0,0.001]
[1641243561927,1.04175188,45856.0,45855.0,0.001]
[1641243562325,1.23055693,45858.0,45855.0,0.03511105]
[1641243562525,0.18,45865.0,45859.0,0.43611345]
[1641243562725,1.18230019,45860.0,45859.0,0.50750345]
[1641243563325,1.18230019,45860.0,45859.0,2.93584915]
[1641243563525,1.18230019,45860.0,45859.0,2.95764502]
[1641243563727,0.10699999,45864.0,45859.0,2.95764502]
[1641243563926,0.10699999,45864.0,45863.0,0.001]
[1641243564628,0.27699999,45864.0,45863.0,0.001]
[1641243565826,0.14033567,45868.0,45863.0,0.001]
[1641243565827,0.16699999,45869.0,45863.0,0.001]
[1641243566027,0.16699999,45869.0,45866.0,0.02179396]
[1641243566228,0.16699999,45869.0,45868.0,0.001]
[1641243566429,0.154,45869.0,45868.0,0.001]
[1641243566829,0.32099999,45869.0,45868.0,0.001]
[1641243567031,0.154,45869.0,45868.0,0.001]
[1641243567430,0.0601,45880.0,45870.0,0.28201021]
[1641243567630,0.16699999,45878.0,45870.0,0.0622]
[1641243567831,0.0001,45880.0,45875.0,0.01300001]
[1641243568035,1.9375,45899.0,45879.0,0.15433568]
[1641243568036,0.1621229,45898.0,45879.0,0.15433568]
[1641243568240,0.1621229,45898.0,45889.0,0.01300001]
[1641243568241,0.69722322,45895.0,45889.0,0.01300001]
[1641243568431,0.69722322,45895.0,45889.0,0.08093]
[1641243568632,1.13269992,45890.0,45889.0,0.08093]
[1641243568832,1.13269992,45890.0,45889.0,0.09493001]
[1641243569038,0.86422321,45897.0,45889.0,0.10377301]
[1641243569233,0.86422321,45897.0,45889.0,0.10277301]
[1641243569634,0.69722322,45897.0,45889.0,0.10277301]
[1641243569836,0.02673084,45897.0,45896.0,0.02177969]
[1641243570033,0.0001,45900.0,45896.0,0.16211536]
[1641243570234,0.0001,45900.0,45899.0,0.001]
[1641243570435,0.0001,45900.0,45899.0,0.06382]
[1641243571636,0.0001,45900.0,45899.0,0.09326923]
[1641243572440,0.0001,45900.0,45899.0,0.27626923]
[1641243572736,0.0001,45900.0,45899.0,0.184]
[1641243573737,0.0001,45900.0,45899.0,0.06119]
[1641243574438,0.0001,45900.0,45899.0,0.25519]
[1641243575138,0.0001,45900.0,45899.0,0.3474524]
[1641243575639,0.0001,45900.0,45899.0,0.1534524]
[1641243576545,0.0001,45900.0,45899.0,0.3474524]
[1641243577743,0.0001,45900.0,45899.0,0.1534524]
[1641243578544,0.0001,45900.0,45899.0,0.3464524]
[1641243579747,0.0001,45900.0,45899.0,0.1534524]
[1641243580357,1.23026317,45900.0,45899.0,0.1534524]
[1641243580551,1.23026317,45900.0,45899.0,0.3454524]
[1641243580851,1.23907292,45900.0,45899.0,0.3454524]
[1641243581350,0.00890975,45900.0,45899.0,0.3454524]
[1641243581749,0.00890975,45900.0,45899.0,0.5026909]
[1641243581951,0.0001,45900.0,45899.0,0.5026909]
[1641243582151,0.00890975,45900.0,45899.0,0.5026909]
[1641243582349,0.0001,45900.0,45899.0,0.5026909]
[1641243582550,0.0001,45900.0,45899.0,0.6986909]
[1641243582853,0.43421874,45904.0,45899.0,0.6986909]
[1641243583151,1.23000014,45906.0,45903.0,0.01400001]
[1641243583351,1.23000014,45906.0,45905.0,0.001]
[1641243583754,1.23000014,45906.0,45905.0,0.001325]
[1641243583954,1.23000014,45907.0,45905.0,0.001325]
[1641243584160,1.23000014,45907.0,45906.0,0.15433568]
[1641243584553,1.23000014,45907.0,45906.0,0.48046068]
[1641243584753,1.23000014,45907.0,45906.0,0.59449561]
[1641243584954,1.23010014,45910.0,45906.0,0.59449561]
[1641243585155,1.23010014,45910.0,45909.0,0.001]
[1641243585754,1.39710013,45910.0,45909.0,0.001]
[1641243586556,1.39710013,45910.0,45909.0,0.192]
[1641243587057,0.16709999,45910.0,45909.0,0.192]
[1641243587357,0.16709999,45910.0,45909.0,0.2842624]
[1641243587760,0.16709999,45910.0,45909.0,0.0932624]
[1641243587961,0.0001,45910.0,45909.0,0.0932624]
[1641243588558,0.16709999,45910.0,45909.0,0.2872624]
[1641243588960,0.0001,45910.0,45909.0,0.2872624]
[1641243589160,1.22999916,45910.0,45909.0,0.195]
[1641243590377,1.22999916,45910.0,45909.0,0.2872624]
[1641243590577,1.22999916,45910.0,45909.0,0.2862624]
[1641243591175,1.31186916,45910.0,45909.0,0.2862624]
[1641243591775,1.31186916,45910.0,45909.0,0.0932624]
[1641243592477,1.31186916,45910.0,45909.0,0.2812624]
[1641243592878,0.0001,45910.0,45909.0,0.2812624]
[1641243593081,0.0001,45910.0,45909.0,0.189]
[1641243593686,0.0001,45910.0,45909.0,0.27717]
[1641243593879,0.0001,45910.0,45909.0,0.08917]
[1641243594084,1.23000926,45910.0,45909.0,0.1814324]
[1641243594480,1.23000926,45910.0,45909.0,0.3734324]
[1641243594680,1.23000926,45910.0,45909.0,0.38643241]
[1641243594880,0.0001,45910.0,45909.0,0.29417001]
[1641243596080,0.0001,45910.0,45909.0,0.38643241]
[1641243596480,0.0001,45910.0,45909.0,0.38743241]
[1641243597180,0.0001,45910.0,45909.0,0.3744324]
[1641243597780,0.0001,45910.0,45909.0,0.1814324]
[1641243597980,0.0001,45910.0,45909.0,0.0932624]
[1641243598182,0.16709999,45910.0,45909.0,0.0932624]
[1641243598581,0.16709999,45910.0,45909.0,0.2762624]
[1641243599182,0.17472249,45910.0,45909.0,0.184]
[1641243600286,0.17472249,45910.0,45909.0,0.185]
[1641243600488,0.17472249,45910.0,45909.0,0.2432624]
[1641243601187,0.17472249,45910.0,45909.0,0.151]
[1641243601386,0.17472249,45910.0,45909.0,0.152]
[1641243601587,0.17472249,45910.0,45909.0,0.151]
[1641243601787,0.17472249,45910.0,45907.0,0.0922624]
[1641243602189,0.0076225,45909.0,45907.0,0.0922624]
[1641243602590,0.0076225,45909.0,45901.0,1.43761227]
[1641243603089,0.16699999,45903.0,45901.0,1.43761227]
[1641243603293,0.16699999,45903.0,45902.0,0.001]
[1641243603690,0.16699999,45903.0,45902.0,0.06207]
[1641243603691,0.0076225,45903.0,45902.0,0.06207]
[1641243603890,0.0076225,45903.0,45902.0,0.08384706]
[1641243604191,0.0076225,45905.0,45902.0,0.08384706]
[1641243604391,0.0076225,45905.0,45904.0,0.001]
[1641243604993,0.0076225,45906.0,45904.0,0.001]
[1641243605194,0.86094335,45907.0,45905.0,0.001]
[1641243605395,0.86094335,45907.0,45906.0,0.001]
[1641243605595,0.16699999,45907.0,45906.0,0.001]
[1641243606102,0.34699999,45907.0,45899.0,0.14033567]
[1641243606295,0.16699999,45900.0,45897.0,0.02177919]
[1641243606495,0.17679399,45900.0,45897.0,0.02177919]
[1641243606897,0.18,45898.0,45895.0,0.76621657]
[1641243607098,0.16699999,45896.0,45889.0,1.8744]
[1641243607303,0.34699999,45890.0,45886.0,0.64712142]
[1641243607502,0.34699999,45887.0,45886.0,0.50678575]
[1641243607906,0.35679399,45887.0,45886.0,0.50678575]
[1641243608508,0.35679399,45887.0,45886.0,0.181]
[1641243609200,0.35779399,45887.0,45886.0,0.181]
[1641243609400,0.35779399,45887.0,45879.0,0.14033567]
[1641243609602,0.34699999,45880.0,45873.0,0.50678575]
[1641243609806,0.34699999,45874.0,45873.0,0.50678575]
[1641243610006,0.34699999,45874.0,45862.0,1.9183]
[1641243610209,0.16699999,45863.0,45859.0,0.14033567]
[1641243610409,0.16699999,45860.0,45852.0,1.8898]
[1641243610608,0.16699999,45853.0,45851.0,1.84629684]
[1641243610813,0.24153999,45853.0,45851.0,1.84629684]
[1641243611008,0.009794,45852.0,45851.0,1.84629684]
[1641243611604,0.009794,45852.0,45849.0,0.14033567]
[1641243611803,0.16699999,45850.0,45849.0,0.14033567]
[1641243612202,1.00187381,45873.0,45849.0,0.14033567]
[1641243612203,0.16699999,45853.0,45849.0,0.14033567]
[1641243612403,0.16699999,45853.0,45849.0,0.15264555]
[1641243612602,0.173,45850.0,45849.0,0.63764167]
[1641243613002,0.173,45850.0,45849.0,0.67244357]
[1641243613202,0.16699999,45857.0,45850.0,0.21185321]
[1641243613405,0.14033567,45869.0,45856.0,0.01300001]
[1641243613602,0.14033567,45869.0,45863.0,0.01300001]
[1641243613803,0.2,45884.0,45868.0,0.02179295]
[1641243614005,0.16699999,45877.0,45870.0,0.01300001]
[1641243614202,0.2,45884.0,45876.0,0.14033567]
[1641243614203,0.02,45884.0,45876.0,0.14033567]
[1641243614402,0.02,45884.0,45876.0,0.21254567]
[1641243614403,0.18699999,45884.0,45876.0,0.21254567]
[1641243614603,0.18699999,45884.0,45882.0,0.02178606]
[1641243614806,0.18699999,45884.0,45877.0,0.329009]
[1641243615003,0.18699999,45884.0,45880.0,0.0217873]
[1641243615206,0.02,45884.0,45880.0,0.0217873]
[1641243615404,0.16699999,45881.0,45880.0,0.0217873]
[1641243616008,0.16699999,45881.0,45876.0,0.21254567]
[1641243616305,0.16699999,45877.0,45876.0,0.21254567]
[1641243616506,0.16699999,45877.0,45876.0,0.33133567]
[1641243616705,0.35679399,45877.0,45876.0,0.191]
[1641243616904,0.17679399,45877.0,45876.0,0.191]
[1641243618106,0.17679399,45877.0,45871.0,0.14033567]
[1641243618306,0.009794,45877.0,45876.0,0.14033567]
[1641243618510,0.17679399,45877.0,45876.0,0.32933567]
[1641243619009,0.17679399,45877.0,45876.0,0.189]
[1641243619909,0.17679399,45877.0,45871.0,0.14033567]
[1641243620111,0.16699999,45872.0,45871.0,0.14033567]
[1641243620312,0.16699999,45872.0,45866.0,0.14033567]
[1641243620508,0.16699999,45867.0,45866.0,0.14033567]
[1641243620910,0.17462467,45867.0,45866.0,0.14033567]
[1641243621311,0.35462467,45867.0,45866.0,0.14033567]
[1641243621510,0.17462467,45867.0,45866.0,0.14033567]
[1641243621711,0.23462467,45867.0,45862.0,0.14033567]
[1641243621911,0.16699999,45863.0,45862.0,0.14033567]
[1641243622311,0.17462467,45863.0,45862.0,0.14033567]
[1641243622511,0.17462467,45863.0,45862.0,0.33133567]
[1641243623725,0.17462467,45863.0,45862.0,0.14033567]
[1641243624522,0.17462467,45863.0,45862.0,0.33233567]
[1641243625123,0.17462467,45863.0,45862.0,0.42466015]
[1641243625325,1.03616281,45863.0,45862.0,0.42466015]
[1641243625823,1.03616281,45863.0,45862.0,0.23266015]
[1641243626626,1.03616281,45863.0,45862.0,0.42166015]
[1641243627227,0.86916282,45863.0,45862.0,0.42166015]
[1641243627826,1.03616281,45863.0,45862.0,0.23266015]
[1641243628630,1.03616281,45863.0,45862.0,0.42166015]
[1641243629129,0.17462467,45863.0,45862.0,0.42166015]
[1641243629630,0.00762468,45863.0,45862.0,0.42166015]
[1641243629828,0.00762468,45863.0,45862.0,0.23266015]
[1641243630028,1.03616281,45863.0,45862.0,0.23266015]
[1641243630629,1.03616281,45863.0,45862.0,0.42066015]
[1641243631533,0.17462467,45863.0,45862.0,0.42066015]
[1641243631933,0.17462467,45863.0,45862.0,0.23266015]
[1641243632231,0.17462467,45863.0,45862.0,0.32317015]
[1641243632531,0.16662467,45863.0,45862.0,0.51517015]
[1641243632731,0.10699999,45863.0,45862.0,0.51517015]
[1641243633833,0.10699999,45863.0,45862.0,0.32317015]
[1641243634035,0.86153814,45865.0,45862.0,0.67390335]
[1641243634234,0.86153814,45865.0,45862.0,1.01441302]
[1641243634434,1.22985976,45867.0,45864.0,0.00037532]
[1641243634733,0.16662467,45870.0,45865.0,0.324547]
[1641243634935,0.16662467,45870.0,45866.0,0.02179358]
[1641243635134,0.16662467,45870.0,45867.0,0.01337533]
[1641243635135,1.39749451,45870.0,45867.0,0.01337533]
[1641243635335,1.39749451,45870.0,45867.0,0.327316]
[1641243635735,0.05962468,45869.0,45867.0,0.327316]
[1641243635936,0.16662467,45869.0,45866.0,0.02179358]
[1641243636337,0.16662467,45869.0,45868.0,0.09232448]
[1641243637336,0.16662467,45870.0,45868.0,0.10463089]
[1641243637637,0.16662467,45870.0,45868.0,0.09232448]
[1641243638235,0.16662467,45870.0,45869.0,0.09232448]
[1641243638736,0.14252467,45870.0,45869.0,0.09232448]
[1641243639739,0.14252467,45870.0,45869.0,1.44497892]
[1641243640536,0.14252467,45870.0,45869.0,0.191]
[1641243640736,0.14252467,45870.0,45869.0,0.28332448]
[1641243642039,0.14252467,45870.0,45869.0,0.09232448]
[1641243642243,0.14252467,45870.0,45867.0,0.14033567]
[1641243642639,0.14252467,45870.0,45869.0,0.186]
[1641243643042,0.14252467,45870.0,45869.0,0.25272]
[1641243643440,0.14033567,45877.0,45869.0,0.25272]
[1641243643640,0.05962468,45870.0,45869.0,0.25272]
[1641243643841,0.14033567,45877.0,45869.0,0.06672]
[1641243644042,0.14252467,45874.0,45869.0,0.06672]
[1641243644245,0.32252467,45870.0,45867.0,0.14033567]
[1641243644442,0.14252467,45870.0,45869.0,0.17]
[1641243645845,0.14033567,45877.0,45867.0,0.14033567]
[1641243646044,0.14252467,45870.0,45867.0,0.14033567]
[1641243646245,0.14033567,45877.0,45867.0,0.14033567]
[1641243646446,0.14033567,45877.0,45867.0,0.31633567]
[1641243646645,0.14033567,45877.0,45868.0,0.32776]
[1641243647244,0.14252467,45874.0,45868.0,0.32776]
[1641243648045,0.14033567,45877.0,45867.0,0.16212882]
[1641243648448,0.14252467,45869.0,45868.0,0.01230677]
[1641243648646,0.14252467,45869.0,45868.0,0.19630677]
[1641243649046,0.14252467,45869.0,45868.0,0.39591781]
[1641243649646,0.14911487,45869.0,45868.0,0.39591781]
[1641243649846,0.14911487,45869.0,45868.0,0.21191781]
[1641243650547,0.14911487,45869.0,45868.0,0.40391781]
[1641243651248,0.14911487,45869.0,45868.0,0.39161104]
[1641243651749,0.14911487,45869.0,45868.0,0.19961104]
[1641243652648,0.14911487,45869.0,45868.0,0.19]
[1641243652850,0.40951487,45869.0,45868.0,0.19]
[1641243653050,0.22951487,45869.0,45868.0,0.19]
[1641243653750,0.22951487,45869.0,45863.0,0.3062829]
[1641243653952,0.08289999,45865.0,45863.0,0.3062829]
[1641243654353,0.08289999,45865.0,45864.0,0.01230751]
[1641243654753,0.08289999,45871.0,45864.0,0.03410199]
[1641243654953,0.14252467,45871.0,45864.0,0.03410199]
[1641243655153,0.14252467,45871.0,45865.0,0.33936251]
[1641243655654,0.14252467,45871.0,45866.0,0.01230751]
[1641243656256,0.14252467,45871.0,45866.0,0.21545958]
[1641243656455,0.14252467,45871.0,45869.0,0.14033567]
[1641243656856,0.14252467,45871.0,45870.0,0.01230751]
[1641243658464,0.14252467,45871.0,45870.0,0.40345958]
[1641243659068,0.05962468,45871.0,45870.0,0.40345958]
[1641243659772,0.05962468,45871.0,45870.0,0.21545958]
[1641243660470,0.05962468,45871.0,45870.0,0.40245958]
[1641243660670,0.99997118,45877.0,45870.0,0.40245958]
[1641243660873,0.12122467,45876.0,45870.0,0.42425058]
[1641243661071,0.12122467,45876.0,45871.0,0.01230751]
[1641243661270,0.12122467,45876.0,45871.0,0.10429751]
[1641243661570,0.14033567,45877.0,45871.0,0.10429751]
[1641243661772,0.12122467,45875.0,45872.0,0.01230751]
[1641243661970,0.12122467,45875.0,45872.0,1.4711855]
[1641243662373,0.12122467,45875.0,45873.0,0.01230751]
[1641243662973,0.12122467,45875.0,45873.0,1.67433757]
[1641243663372,0.12122467,45875.0,45873.0,1.66203006]
[1641243663572,0.12122467,45875.0,45873.0,1.55613006]
[1641243663773,0.20179873,45874.0,45873.0,1.55613006]
[1641243663973,0.26337873,45874.0,45873.0,1.55613006]
[1641243664172,0.26337873,45874.0,45873.0,0.20315207]
[1641243664373,0.26337873,45874.0,45869.0,0.14033567]
[1641243664580,0.12122467,45870.0,45869.0,0.14033567]
[1641243665380,0.12122467,45870.0,45869.0,0.15264323]
[1641243666481,0.18499467,45870.0,45869.0,0.33464323]
[1641243666882,0.36499467,45870.0,45869.0,0.19430756]
[1641243667281,0.36499467,45870.0,45869.0,0.182]
[1641243667882,1.22463018,45870.0,45862.0,0.14033567]
[1641243668282,1.22463018,45870.0,45863.0,0.01230826]
[1641243668482,1.10340551,45870.0,45863.0,0.01230826]
[1641243668683,0.12122467,45864.0,45863.0,0.01230826]
[1641243669586,0.12782281,45864.0,45863.0,0.01230826]
[1641243670584,0.12782281,45864.0,45863.0,0.20430826]
[1641243671984,0.12782281,45864.0,45863.0,0.01230826]
[1641243672588,0.12782281,45864.0,45863.0,0.22410313]
[1641243672786,0.12122467,45864.0,45863.0,0.22410313]
[1641243672987,0.12122467,45864.0,45863.0,0.28536262]
[1641243673887,0.12122467,45864.0,45863.0,0.09536262]
[1641243674587,0.14033567,45871.0,45863.0,0.34813795]
[1641243674787,0.12122467,45864.0,45863.0,0.28936262]
[1641243674987,0.12122467,45864.0,45863.0,0.21579487]
[1641243675189,0.12122467,45864.0,45863.0,0.27707296]
[1641243675788,0.14033567,45871.0,45863.0,0.27707296]
[1641243675987,0.05962468,45864.0,45863.0,0.08307296]
[1641243676188,0.12122467,45864.0,45863.0,0.02179487]
[1641243676590,0.12122467,45864.0,45863.0,0.21579487]
[1641243676792,0.85963551,45873.0,45863.0,0.64429745]
[1641243676990,0.85963551,45873.0,45869.0,0.05877533]
[1641243676991,0.12122467,45871.0,45869.0,0.05877533]
[1641243677190,0.12122467,45871.0,45870.0,0.001]
[1641243677791,0.12122467,45871.0,45870.0,1.46064261]
[1641243677989,0.12782106,45871.0,45870.0,1.46064261]
[1641243678591,0.12782106,45871.0,45870.0,1.65364261]
[1641243678991,0.12782106,45871.0,45870.0,0.194]
[1641243679192,0.00659639,45871.0,45870.0,0.194]
[1641243679693,0.12122467,45871.0,45870.0,0.194]
[1641243679891,0.12782106,45871.0,45870.0,0.15069344]
[1641243680494,0.12782106,45871.0,45870.0,0.34169344]
[1641243681893,0.12782106,45871.0,45870.0,0.15069344]
[1641243682093,0.00659639,45871.0,45870.0,0.15069344]
[1641243682492,0.00659639,45871.0,45870.0,0.34369344]
[1641243683893,0.00659639,45871.0,45870.0,0.15069344]
[1641243684494,0.00659639,45871.0,45870.0,0.34269344]
[1641243685795,0.18659639,45871.0,45870.0,0.15069344]
[1641243685997,0.18659639,45871.0,45870.0,0.14969344]
[1641243686196,0.27222639,45871.0,45870.0,0.14969344]
[1641243686596,0.27222639,45871.0,45870.0,0.33669344]
[1641243687897,0.27222639,45871.0,45870.0,0.14969344]
[1641243688697,0.27222639,45871.0,45870.0,0.25669344]
[1641243688897,0.41256206,45871.0,45870.0,0.25669344]
[1641243690099,0.09222639,45871.0,45870.0,0.26900137]
[1641243690300,0.00659639,45871.0,45870.0,0.26900137]
[1641243690499,0.18659639,45871.0,45870.0,0.31600137]
[1641243690701,1.04820129,45871.0,45870.0,0.31600137]
[1641243691700,0.18659639,45871.0,45870.0,0.31600137]
[1641243691899,0.18659639,45871.0,45870.0,0.16200137]
[1641243692500,0.18659639,45871.0,45870.0,0.29900137]
[1641243692700,0.25349639,45871.0,45870.0,0.29900137]
[1641243693303,0.25349639,45871.0,45870.0,0.28669344]
[1641243693902,0.25349639,45871.0,45870.0,0.14969344]
[1641243694804,0.25349639,45871.0,45863.0,1.46711443]
[1641243694805,1.48153114,45871.0,45863.0,1.46711443]
[1641243695004,0.30122467,45864.0,45863.0,1.46711443]
[1641243695203,0.31101867,45864.0,45863.0,1.46711443]
[1641243695406,0.31761506,45864.0,45863.0,1.46711443]
[1641243696003,0.31761506,45864.0,45860.0,1.46711443]
[1641243696205,0.30122467,45861.0,45860.0,1.46711443]
[1641243696403,0.35870467,45861.0,45860.0,1.46711443]
[1641243696604,0.36530106,45861.0,45860.0,1.57911443]
[1641243696804,0.50563673,45861.0,45860.0,1.57911443]
[1641243697805,0.50563673,45861.0,45860.0,1.46711443]
[1641243698006,0.50563673,45861.0,45854.0,1.78954943]
[1641243698007,0.50563673,45861.0,45859.0,1.46711443]
[1641243698207,0.18,45860.0,45859.0,1.46711443]
[1641243698408,0.18659639,45860.0,45859.0,1.46711443]
[1641243698707,0.00659639,45860.0,45859.0,1.46711443]
[1641243699106,0.18659639,45860.0,45859.0,1.46711443]
[1641243699405,0.18659639,45860.0,45857.0,1.46711443]
[1641243699609,0.30122467,45858.0,45857.0,1.46711443]
[1641243699813,0.30122467,45858.0,45857.0,1.46811443]
[1641243700206,0.30782106,45858.0,45857.0,1.46811443]
[1641243700605,0.30782106,45858.0,45857.0,1.63411443]
[1641243701207,0.30782106,45858.0,45857.0,0.167]
[1641243701506,0.12782106,45858.0,45857.0,0.167]
[1641243701908,0.12782106,45858.0,45857.0,0.001]
[1641243702311,0.00659639,45858.0,45857.0,0.001]
[1641243702509,0.12782106,45858.0,45857.0,0.189]
[1641243702710,0.12122467,45858.0,45857.0,0.189]
[1641243702909,0.00659639,45858.0,45857.0,0.88404326]
[1641243703109,0.00659639,45858.0,45857.0,0.82526793]
[1641243703311,0.00659639,45861.0,45857.0,1.15203393]
[1641243703512,0.00659639,45861.0,45860.0,0.05877533]
[1641243703712,0.00659639,45865.0,45860.0,0.05877533]
[1641243703911,0.00659639,45865.0,45860.0,0.38790033]
[1641243704114,0.00659639,45865.0,45862.0,0.43608316]
[1641243704511,0.00659639,45865.0,45863.0,0.322672]
[1641243704712,0.00659639,45865.0,45862.0,0.62508316]
[1641243704911,0.00659639,45866.0,45862.0,0.68385849]
[1641243705312,0.98295119,45869.0,45862.0,0.68385849]
[1641243705313,0.00659639,45868.0,45862.0,0.68385849]
[1641243705512,0.12782106,45865.0,45864.0,1.46712789]
[1641243705813,0.12122467,45865.0,45864.0,1.46712789]
[1641243706013,0.00659639,45865.0,45864.0,1.46712789]
[1641243706414,0.00659639,45865.0,45864.0,1.46812789]
[1641243706614,0.12122467,45867.0,45864.0,1.65812789]
[1641243706814,0.00659639,45865.0,45864.0,1.65712789]
[1641243707016,0.00659639,45866.0,45864.0,1.65812789]
[1641243707316,0.00659639,45866.0,45864.0,1.65712789]
[1641243707516,0.00659639,45865.0,45864.0,1.65712789]
[1641243707716,0.00659639,45865.0,45864.0,1.65812789]
[1641243707918,0.00659639,45866.0,45864.0,1.46812789]
[1641243708219,0.00659639,45865.0,45864.0,1.46712789]
[1641243708417,0.00659639,45865.0,45864.0,0.001]
[1641243708630,0.12122467,45867.0,45864.0,0.189]
[1641243708819,0.00659639,45865.0,45864.0,0.188]
[1641243709017,0.00659639,45866.0,45864.0,0.189]
[1641243709217,0.00659639,45865.0,45864.0,0.188]
[1641243709418,0.00659639,45865.0,45864.0,0.189]
[1641243709718,0.00659639,45866.0,45864.0,0.24777533]
[1641243709917,0.00659639,45865.0,45864.0,0.188]
[1641243710118,0.00659639,45865.0,45864.0,0.24777533]
[1641243710319,0.00659639,45866.0,45864.0,0.26008335]
[1641243710518,0.00659639,45865.0,45864.0,0.20030802]
[1641243710718,0.00659639,45865.0,45864.0,0.189]
[1641243710919,0.12782106,45869.0,45864.0,1.80676316]
[1641243711124,0.00659639,45865.0,45864.0,1.80576316]
[1641243711321,0.00659639,45868.0,45864.0,1.80676316]
[1641243711519,0.00659639,45865.0,45864.0,1.80576316]
[1641243711720,0.00659639,45868.0,45864.0,0.33963527]
[1641243711919,0.00659639,45868.0,45864.0,0.15063527]
[1641243712319,0.00659639,45868.0,45867.0,0.05840001]
[1641243712523,0.00659639,45868.0,45867.0,0.12184533]
[1641243712720,0.00659639,45873.0,45867.0,0.44374333]
[1641243713020,0.00659639,45872.0,45871.0,0.05877533]
[1641243713819,0.00659639,45873.0,45871.0,0.05877533]
[1641243714622,0.00659639,45873.0,45872.0,0.05877533]
[1641243714822,0.00659639,45873.0,45872.0,0.4947632]
[1641243715021,0.00659639,45873.0,45872.0,0.8198182]
[1641243715222,0.00659639,45873.0,45872.0,0.97045347]
[1641243715622,0.00659639,45879.0,45872.0,0.97045347]
[1641243715822,0.12122467,45879.0,45875.0,0.05877533]
[1641243716226,1.00206219,45881.0,45875.0,0.05877533]
[1641243716425,0.12122467,45878.0,45875.0,0.05877533]
[1641243716624,0.12122467,45878.0,45875.0,0.24677533]
[1641243716824,0.12122467,45878.0,45875.0,0.188]
[1641243717323,0.12122467,45878.0,45876.0,0.15063527]
[1641243717923,1.12328686,45881.0,45877.0,0.05877533]
[1641243718124,0.14033567,45881.0,45880.0,0.05877533]
[1641243718323,0.14033567,45881.0,45878.0,0.325737]
[1641243718729,0.14033567,45881.0,45880.0,0.19]
[1641243719124,0.14033567,45881.0,45880.0,0.34063527]
[1641243719325,0.98295119,45883.0,45880.0,0.36242243]
[1641243719925,0.86172652,45883.0,45880.0,0.36242243]
[1641243720225,0.009794,45890.0,45883.0,0.43589088]
[1641243720428,0.009794,45890.0,45884.0,0.05877533]
[1641243720626,0.86104035,45884.0,45883.0,0.43589088]
[1641243721036,0.86104035,45884.0,45883.0,0.72034922]
[1641243721239,0.86104035,45884.0,45883.0,0.72134922]
[1641243721836,0.12122467,45888.0,45883.0,0.72134922]
[1641243722038,0.009794,45890.0,45883.0,0.72034922]
[1641243722237,0.07472467,45888.0,45883.0,0.87098449]
[1641243722637,0.07472467,45888.0,45883.0,1.06398449]
[1641243723040,0.07472467,45888.0,45883.0,1.20432016]
[1641243723239,0.07472467,45888.0,45884.0,1.60365836]
[1641243723439,0.07472467,45892.0,45887.0,0.10627533]
[1641243723640,0.99349128,45904.0,45891.0,0.10527533]
[1641243723843,0.99349128,45904.0,45895.0,0.10527533]
[1641243723844,0.21506034,45903.0,45895.0,0.10527533]
[1641243724242,0.21506034,45903.0,45896.0,0.321847]
[1641243724643,0.21506034,45903.0,45900.0,0.10527533]
[1641243724644,0.14033567,45903.0,45900.0,0.10527533]
[1641243724847,0.99349128,45904.0,45901.0,0.44551299]
[1641243725044,0.99349128,45904.0,45903.0,0.10527533]
[1641243725244,0.99349128,45904.0,45902.0,0.16211098]
[1641243725445,0.99349128,45904.0,45903.0,0.327185]
[1641243726347,0.07482467,45910.0,45903.0,0.327185]
[1641243726547,0.0001,45910.0,45907.0,0.10527533]
[1641243726747,0.0001,45910.0,45908.0,0.009794]
[1641243726946,0.0001,45910.0,45909.0,0.14033567]
[1641243727447,0.0001,45910.0,45909.0,0.46923767]
[1641243727849,0.0001,45910.0,45909.0,0.49100842]
[1641243728046,0.0001,45910.0,45909.0,0.50330571]
[1641243728245,0.0001,45910.0,45909.0,0.49100842]
[1641243728648,0.0001,45910.0,45909.0,0.68300842]
[1641243728851,0.0001,45910.0,45909.0,0.83364369]
[1641243729049,0.0001,45910.0,45909.0,0.48297094]
[1641243730047,0.0001,45910.0,45909.0,0.29097094]
[1641243730645,0.0001,45910.0,45909.0,0.47897094]
[1641243730847,0.00668514,45910.0,45909.0,0.47897094]
[1641243731457,0.00668514,45910.0,45909.0,0.60601984]
[1641243731647,0.0001,45910.0,45909.0,0.60601984]
[1641243731848,0.00668514,45910.0,45909.0,0.82654651]
[1641243732048,0.00658514,45914.0,45911.0,0.43551958]
[1641243732248,0.07472467,45912.0,45911.0,0.50157958]
[1641243732449,0.86085747,45912.0,45911.0,0.06606]
[1641243732648,0.86085747,45912.0,45911.0,0.257158]
[1641243733049,1.04085747,45912.0,45911.0,0.257158]
[1641243733251,0.94621747,45912.0,45911.0,0.25506]
[1641243733452,0.94621747,45912.0,45911.0,0.40469527]
[1641243733453,0.08536,45912.0,45911.0,0.40469527]
[1641243734053,0.08536,45912.0,45911.0,0.21669527]
[1641243734450,0.07472467,45914.0,45911.0,0.21669527]
[1641243734650,0.07472467,45914.0,45911.0,0.40469527]
[1641243735652,0.07472467,45914.0,45912.0,0.15063527]
[1641243736754,0.18,45913.0,45912.0,0.33663527]
[1641243736954,0.07472467,45914.0,45912.0,0.33663527]
[1641243737355,0.07472467,45914.0,45912.0,0.39756527]
[1641243737955,0.07472467,45914.0,45913.0,0.15063527]
[1641243738157,1.30448623,45914.0,45913.0,0.15063527]
[1641243738757,1.30448623,45914.0,45913.0,0.33663527]
[1641243738956,1.30448623,45914.0,45913.0,0.63341588]
[1641243739161,0.07472467,45914.0,45913.0,0.48278061]
[1641243739357,0.07472467,45917.0,45913.0,0.80889361]
[1641243739560,0.07472467,45914.0,45913.0,0.78712208]